Workbook

Sheet Лист1
A1: Device | B1: TK04
A2: Sample 1 | B2: Mixture Sandstone 60x43-H2O
B3: Experimental results | F3: Лихтенеккера
B4: TC measured | C4: TC H2O | D4: % H2O | E4: % of Cuttings | F4: TC of Cuttings
B5: 2.04 | C5: 0.6 | D5: 0.387 | E5: 0.613 | F5: 4.4
C8: Input values
A9: λeff | B9: λfil | C9: φ | D9: Лихтенеккера | E9: Роя-Адлера | F9: Максвелла
A10: 2.652 | B10: 0.01 | C10: 0.14 | D10: =(A10*B10^(-C10))^(1/(1-C10)) -> 6.578225303 | E10: =1/(1-C10)^2*(A10^(1/2)-C10*B10^(1/2))^2 -> 3.524334918 | F10: =(3*(A10/B10)+2*C10)*B10/(3+2*C10*(A10/B10-1)) -> 0.1033932654
A11: 2.03 | C11: 0.142 | D11: =(A11*B11^(-C11))^(1/(1-C11)) ->  | E11: 2.757537723 | F11: =(3*(A11/B11)+2*C11)*B11/(3+2*C11*(A11/B11-1)) -> 
A12: 1.92 | C12: 0.159 | E12: 2.714621204
A13: 2.02 | B13: 186.54 | C13: 0.212 | D13: 0.597837826 | E13: 3.500040207 | F13: 32.9974594
A14: 2.312 | B14: 0.01 | C14: 0.228 | D14: 11.5387935 | E14: 3.763832325 | F14: 0.0642815862
A15: 2.28 | B15: 0.01 | C15: 0.212 | D15: 9.824333694 | E15: 3.569447235 | F15: 0.06896098662
A16: 1.965 | C16: 0.177 | E16: 2.901101237
A17: 2.245 | C17: 0.189 | E17: 3.413301385
A18: 1.995 | C18: 0.194 | E18: 3.070950502
A19: 2.543 | B19: 0.01 | C19: 0.178 | D19: 8.437467578 | E19: 3.680043156 | F19: 0.08191656972
A20: 2.198 | C20: 0.201 | E20: 3.442977063
A21: 2.347 | B21: 0.01 | C21: 0.202 | D21: 9.344752028 | E21: 3.58904083 | F21: 0.07232001708
A22: 2.563 | B22: 0.01 | C22: 0.157 | D22: 7.200340463 | E22: 3.536171951 | F22: 0.09249340461
A23: 2.19 | C23: 0.167 | E23: 3.156124395
A24: 2.722 | C24: 0.111 | E24: 3.444170154
A25: 2.58 | C25: 0.064 | E25: 2.944882753
A26: 2.24 | C26: 0.098 | E26: 2.753182138
A27: 2.763 | C27: 0.089 | E27: 3.329232541
A28: 2.507 | B28: 0.01 | C28: 0.176 | D28: 8.158213479 | E28: 3.610695826 | F28: 0.08278309775
A29: 2.095 | C29: 0.095 | E29: 2.557919477
A30: 2.887 | C30: 0.045 | E30: 3.165483402
A31: 2.822 | C31: 0.033 | E31: 3.017894553
A32: 2.765 | C32: 0.109 | E32: 3.482889753
A33: 2.627 | B33: 0.01 | C33: 0.202 | D33: 10.76229403 | E33: 4.023102286 | F33: 0.07252158621
A34: 1.877 | C34: 0.178 | E34: 2.777925776
A35: 2.135 | C35: 0.196 | E35: 3.302826663
A36: 2.055 | C36: 0.176 | E36: 3.026616552
A37: 1.99 | C37: 0.166 | E37: 2.861020536
A38: 2.037 | C38: 0.198 | E38: 3.166957917
A39: 2.395 | B39: 0.01 | C39: 0.185 | D39: 8.306025753 | E39: 3.520014808 | F39: 0.07878459094
A40: 1.785 | B40: 163.14 | C40: 0.219 | D40: 0.50324161 | E40: 3.500235607 | F40: 29.92463294
A41: 2.39 | B41: 0.01 | C41: 0.232 | D41: 12.49891363 | E41: 3.931351693 | F41: 0.06325058185
A42: 1.8 | B42: 169.05 | C42: 0.216 | D42: 0.5149460955 | E42: 3.500214155 | F42: 30.4865138
A43: 1.848 | C43: 0.187 | E43: 2.795895118
A44: 2.11 | B44: 175.19 | C44: 0.22 | D44: 0.6066833269 | E44: 3.500362756 | F44: 32.51612671
A45: 2.23 | B45: 0.01 | C45: 0.24 | D45: 12.29914212 | E45: 3.737702068 | F45: 0.06110624315
A46: 2 | B46: 187.64 | C46: 0.211 | D46: 0.5937241352 | E46: 3.500083163 | F46: 32.98514881
A47: 2.73 | C47: 0.112 | E47: 3.462076942
A48: 2.697 | B48: 0.01 | C48: 0.137 | D48: 6.558126291 | E48: 3.561090641 | F48: 0.1056295825
A49: 2.625 | C49: 0.121 | E49: 3.397438138
A50: 2.883 | B50: 0.01 | C50: 0.105 | D50: 5.603117992 | E50: 3.55476235 | F50: 0.1365970347
A51: 2.772 | B51: 0.01 | C51: 0.128 | D51: 6.329485049 | E51: 3.589688328 | F51: 0.1128595307
A52: 2.88 | B52: 0.01 | C52: 0.112 | D52: 5.882827784 | E52: 3.604252115 | F52: 0.1284365712
A53: 2.69 | C53: 0.111 | E53: 3.403680277
A54: 2.63 | C54: 0.126 | E54: 3.442967183
A55: 2.738 | B55: 0.01 | C55: 0.141 | D55: 6.878985303 | E55: 3.647656659 | F55: 0.1028007146
A56: 2.633 | B56: 0.01 | C56: 0.249 | D56: 16.70977177 | E56: 4.526254267 | F56: 0.05915028131
A57: 2.42 | B57: 0.01 | C57: 0.226 | D57: 12.01890255 | E57: 3.92303491 | F57: 0.06490119001
A58: 2.615 | B58: 0.01 | C58: 0.175 | D58: 8.516648415 | E58: 3.759350427 | F58: 0.08333952748
A59: 2.493 | B59: 0.01 | C59: 0.167 | D59: 7.537331584 | E59: 3.517194881 | F59: 0.0870725991
A60: 2.415 | C60: 0.143 | E60: 3.288179302
A61: 2.41 | C61: 0.129 | E61: 3.176733132
A62: 2.68 | C62: 0.057 | E62: 3.013779043
A63: 2.603 | C63: 0.053 | E63: 2.902513244
A64: 2.517 | C64: 0.057 | E64: 2.830478302
A65: 2.577 | C65: 0.065 | E65: 2.947753725
A66: 2.603 | C66: 0.085 | E66: 3.109080594
A67: 2.563 | C67: 0.104 | E67: 3.192512357
A68: 2.615 | C68: 0.092 | E68: 3.171757651
A69: 2.54 | C69: 0.116 | E69: 3.25034295
A70: 2.62 | C70: 0.097 | E70: 3.213111457
A71: 2.438 | C71: 0.136 | E71: 3.265925069
A72: 2.494 | C72: 0.12 | E72: 3.220557851
A73: 2.622 | C73: 0.089 | E73: 3.159336853
A74: 2.645 | C74: 0.098 | E74: =1/(1-C74)^2*(A74^(1/2)-C74*B74^(1/2))^2 -> 3.250967301
A75: 2.556 | C75: 0.069 | D75: =(A75*B75^(-C75))^(1/(1-C75)) ->  | E75: 2.948909792 | F75: =(3*(A75/B75)+2*C75)*B75/(3+2*C75*(A75/B75-1)) -> 
A76: 2.685 | C76: 0.065 | E76: 3.071291716
A77: 1.902 | C77: 0.196 | E77: 2.942377664
A78: 2.087 | B78: 0.01 | C78: 0.255 | D78: 12.98532883 | E78: 3.628617342 | F78: 0.05752568234
A79: 2.527 | C79: 0.107 | E79: 3.168854685
A80: 2.33 | C80: 0.124 | E80: 3.036321178
A81: 2.1 | C81: 0.167 | E81: 3.026420652
A82: 2.51 | C82: 0.121 | E82: 3.248597991
A83: 2.652 | C83: 0.113 | E83: 3.370747958
A84: 2.23 | C84: 0.123 | E84: 2.899383588
A85: 2.34 | C85: 0.095 | E85: 2.857055645
A86: 2.385 | C86: 0.092 | E86: 2.892788527
A87: 2.3 | C87: 0.131 | E87: 3.045708134
A88: 2.02 | C88: 0.177 | E88: 2.982302544
A89: 1.77 | B89: 162.48 | C89: 0.219 | D89: 0.4983994735 | E89: 3.50005127 | F89: 29.79472167
A90: 1.623 | B90: 194.11 | C90: 0.199 | D90: 0.4944570478 | E90: 3.500144834 | F90: 31.52186103
A91: 1.67 | B91: 198.94 | C91: 0.198 | D91: 0.5130815521 | E91: 3.500108268 | F91: 32.13648667
A92: 1.87 | C92: 0.175 | E92: 2.747474747
A93: 2.575 | C93: 0.139 | E93: 3.473529011
A94: 2.387 | B94: 0.01 | C94: 0.186 | D94: 8.340548612 | E94: 3.51627879 | F94: 0.07836770053
A95: 1.8 | C95: 0.192 | E95: 2.757082639
A96: 1.89 | B96: 152.88 | C96: 0.228 | D96: 0.5164068974 | E96: 3.500221056 | F96: 29.56627523
A97: 2.075 | C97: 0.179 | E97: 3.07844775
A98: 2.5 | C98: 0.104 | E98: 3.114038584
A99: 2.2 | C99: 0.104 | E99: 2.740353954
A100: 1.842 | B100: 174.6 | C100: 0.214 | D100: 0.5334445228 | E100: 3.500201447 | F100: 31.14858242
A101: 1.795 | B101: 146.13 | C101: 0.23 | D101: 0.4823289943 | E101: 3.500113586 | F101: 28.52111925
A102: 2.013 | C102: 0.181 | E102: 3.001068935
A103: 1.92 | C103: 0.199 | E103: 2.992514039
A104: 1.893 | B104: 180.74 | C104: 0.212 | D104: 0.5552469434 | E104: 3.500202601 | F104: 31.89872044
A105: 1.703 | B105: 151.47 | C105: 0.224 | D105: 0.4662130076 | E105: 3.500410098 | F105: 28.53598206
A106: 2.273 | C106: 0.186 | E106: 3.430446305
A107: 2.29 | C107: 0.171 | E107: 3.332164408
A108: 2.143 | C108: 0.191 | E108: 3.27435021
A109: 1.947 | C109: 0.188 | E109: 2.952935038
A110: 2.065 | C110: 0.167 | E110: 2.975980308
A111: 2.38 | B111: 0.01 | C111: 0.195 | D111: 8.959205781 | E111: 3.580438996 | F111: 0.07486010688
A112: 2.027 | C112: 0.191 | E112: 3.097110535
A113: 2.12 | C113: 0.204 | E113: 3.345875104
A114: 2.45 | B114: 0.01 | C114: 0.2 | D114: 9.692986446 | E114: 3.730922026 | F114: 0.07310139165
A115: 2.49 | B115: 0.01 | C115: 0.204 | D115: 10.24001723 | E115: 3.828872449 | F115: 0.07173923059
A116: 1.65 | C116: 0.197 | E116: 2.558897286
A117: 3.12 | B117: 0.01 | C117: 0.185 | D117: 11.48979778 | E117: 4.59932586 | F117: 0.07930634369
A118: 1.74 | C118: 0.127 | E118: 2.283078062
A119: 2.76 | C119: 0.114 | E119: 3.515941483
A120: 2.18 | C120: 0.109 | E120: 2.746003494
A121: 2.442 | C121: 0.124 | E121: 3.182273097
A122: 2.413 | C122: 0.095 | E122: 2.946186014
A123: 2.09 | C123: 0.088 | E123: 2.512792398
A124: 2.954 | B124: 0.01 | C124: 0.102 | D124: 5.636557085 | E124: 3.619825972 | F124: 0.140570526
A125: 3.105 | B125: 0.01 | C125: 0.081 | D125: 5.148848634 | E125: 3.642744069 | F125: 0.1753254672
A126: 2.92 | C126: 0.037 | E126: 3.148692699
A127: 2.78 | C127: 0.048 | E127: 3.067403432
A128: 2.8 | C128: 0.06 | E128: 3.168854685
A129: 2.84 | C129: 0.094 | E129: 3.459887237
A130: 2.66 | B130: 0.01 | C130: 0.175 | D130: 8.694617253 | E130: 3.824753686 | F130: 0.08337859008
A131: 2.228 | C131: 0.131 | E131: 2.950364227
A132: 2.937 | B132: 0.01 | C132: 0.116 | D132: 6.190796749 | E132: 3.707662552 | F132: 0.1242951271
A133: 2.635 | B133: 0.01 | C133: 0.146 | D133: 6.833413917 | E133: 3.548274994 | F133: 0.09928336472
A134: 2.645 | B134: 0.01 | C134: 0.143 | D134: 6.708638571 | E134: 3.538286533 | F134: 0.1012986052
A135: 2.705 | C135: 0.121 | E135: 3.500979109
A136: 2.78 | B136: 0.01 | C136: 0.116 | D136: 5.817770116 | E136: 3.508134085 | F136: 0.124023549
A137: 2.688 | C137: 0.107 | E137: 3.370748474
A138: 2.518 | C138: 0.079 | E138: =1/(1-C138)^2*(A138^(1/2)-C138*B138^(1/2))^2 -> 2.968495982
A139: 2.63 | C139: 0.071 | D139: =(A139*B139^(-C139))^(1/(1-C139)) ->  | E139: 3.047363914 | F139: =(3*(A139/B139)+2*C139)*B139/(3+2*C139*(A139/B139-1)) -> 
A140: 2.607 | C140: 0.089 | E140: 3.141262843
A141: 2.74 | B141: 0.01 | C141: 0.166 | D141: 8.374565922 | E141: 3.860680925 | F141: 0.08782220513
A142: 2.663 | B142: 0.01 | C142: 0.193 | D142: 10.12550198 | E142: 3.99291562 | F142: 0.07582941356
A143: 2.628 | B143: 0.01 | C143: 0.202 | D143: 10.76742812 | E143: 4.024653059 | F143: 0.07252223097
A144: 2.715 | B144: 0.01 | C144: 0.197 | D144: 10.73610172 | E144: 4.110469453 | F144: 0.0743672486
A145: 2.61 | B145: 0.01 | C145: 0.182 | D145: 9.00177697 | E145: 3.813232286 | F145: 0.08022982384
A146: 2.745 | B146: 0.01 | C146: 0.13 | D146: 6.352171866 | E146: 3.569945953 | F146: 0.1111536905
A147: 2.66 | C147: 0.1 | E147: 3.283950617
A148: 2.72 | C148: 0.094 | E148: 3.313694818
A149: 2.638 | C149: 0.088 | E149: 3.171648969
A150: 2.633 | C150: 0.102 | E150: 3.265112772
A151: 2.543 | C151: 0.119 | E151: 3.276382091
A152: 2.643 | C152: 0.137 | E152: 3.548751358
A153: 2.46 | C153: 0.132 | E153: 3.265093759
A154: 2.71 | C154: 0.085 | E154: 3.236883753
A155: 2.54 | C155: 0.067 | E155: 2.917900169
A156: 2.745 | C156: 0.061 | E156: 3.113229695
A157: 2.565 | C157: 0.091 | E157: 3.104270823
A158: 2.777 | B158: 0.01 | C158: 0.123 | D158: 6.113493948 | E158: 3.557474793 | F158: 0.1172600404
A159: 2.795 | B159: 0.01 | C159: 0.116 | D159: 5.853292674 | E159: 3.52719566 | F159: 0.1240507602
A160: 2.683 | C160: 0.089 | E160: 3.232837824
A161: 2.69 | C161: 0.052 | E161: 2.993199096
A162: 2.787 | C162: 0.051 | E162: 3.094600161
A163: 2.58 | C163: 0.126 | E163: 3.377511533
A164: 2.71 | C164: 0.091 | E164: 3.279755918
A165: 2.687 | C165: 0.122 | E165: 3.48560873
A166: 2.69 | C166: 0.107 | E166: 3.373256472
A167: 2.88 | C167: 0.074 | E167: 3.358694587
A168: 2.652 | C168: 0.07 | E168: 3.066250434
A169: 2.973 | B169: 0.01 | C169: 0.084 | D169: 5.0118082 | E169: 3.50882819 | F169: 0.1690214179
A170: 2.72 | B170: 0.01 | C170: 0.133 | D170: 6.427438822 | E170: 3.560391393 | F170: 0.1087108116
A171: 2.763 | B171: 0.01 | C171: 0.136 | D171: 6.693793655 | E171: 3.640973795 | F171: 0.1064657121
A172: 2.625 | C172: 0.105 | E172: 3.277051278
A173: 2.82 | C173: 0.074 | E173: 3.288721783
A174: 2.56 | C174: 0.077 | E174: 3.004945248
A175: 2.79 | C175: 0.086 | E175: 3.339733492
A176: 2.747 | C176: 0.104 | E176: 3.421705596
A177: 2.778 | C177: 0.088 | E177: 3.339969991
A178: 2.773 | C178: 0.055 | E178: 3.105176227
A179: 2.925 | C179: 0.059 | E179: 3.303289399
A180: 2.703 | C180: 0.073 | E180: 3.14547746
A181: 2.592 | C181: 0.095 | E181: 3.164738561
A182: 2.67 | B182: 0.01 | C182: 0.151 | D182: 7.212429482 | E182: 3.636067102 | F182: 0.09615777852
A183: 2.735 | B183: 0.01 | C183: 0.138 | D183: 6.715783255 | E183: 3.619632235 | F183: 0.1049451477
A184: 2.748 | B184: 0.01 | C184: 0.135 | D184: 6.60195437 | E184: 3.613116509 | F184: 0.1072030263
A185: 2.763 | C185: 0.099 | E185: 3.403543479
A186: 2.76 | C186: 0.071 | E186: 3.19799407
A187: 2.743 | C187: 0.064 | E187: 3.130935423
A188: 2.692 | C188: 0.091 | E188: 3.257971562
A189: 2.77 | B189: 0.01 | C189: 0.212 | D189: 12.57747943 | E189: 4.348027803 | F189: 0.06927147904
A190: 2.93 | B190: 0.01 | C190: 0.294 | D190: 31.199438 | E190: 5.678191328 | F190: 0.05034963594
A191: 3.113 | B191: 0.01 | C191: 0.298 | D191: 35.60714958 | E191: 6.105331153 | F191: 0.0497234206
A192: 2.76 | B192: 0.01 | C192: 0.277 | D192: 23.77302703 | E192: 5.105379456 | F192: 0.05333466366
A193: 2.85 | C193: 0.078 | E193: 3.35260986
A194: 2.833 | B194: 0.01 | C194: 0.13 | D194: 6.586796159 | E194: 3.685304602 | F194: 0.1112804
A195: 2.875 | B195: 0.01 | C195: 0.106 | D195: 5.625410164 | E195: 3.552350008 | F195: 0.1353528507
A196: 2.75 | C196: 0.047 | E196: 3.027937402
A197: 2.635 | C197: 0.054 | E197: 2.944410425
A198: 2.723 | C198: 0.054 | E198: 3.042743677
A199: 2.812 | C199: 0.072 | E199: 3.265271998
A200: 2.742 | C200: 0.114 | E200: 3.493011429
A201: 2.882 | C201: 0.05 | E201: 3.193351801
A202: 2.984 | C202: 0.037 | E202: =1/(1-C202)^2*(A202^(1/2)-C202*B202^(1/2))^2 -> 3.217705142
... 328 more rows

Sheet Лист2

Sheet Лист3
